[Event "FIDE Women Candidates 2026"]
[White "Tan,Zhongyi"]
[Black "Divya Deshmukh"]
[Site "Agios Georgios Pegeia"]
[Round "5.4"]
[Annotator "TA"]
[Result "1/2-1/2"]
[Date "2026.04.03"]
[WhiteElo "2535"]
[BlackElo "2497"]
[PlyCount "90"]
[TimeControl "60"]

{[%evp 10,89,9,4,11,4,8,9,9,-6,19,2,12,12,16,0,0,-4,12,14,40,35,47,12,40,25,27,27,34,27,32,27,20,0,34,16,16,0,0,11,20,16,13,22,27,22,40,25,20,22,52,36,45,37,43,56,52,45,45,0,22,12,45,0,20,0,1,0,0,-4,-4,-4,-4,-2,-2,-2,0,-2,0,0,0,-5]} 1. d4 {[%emt 0:0:4]} d5 {[%emt 0:0:9]} 2. c4 {[%emt 0:0:6]} e6 {[%emt 0:0:5]} 3. Nf3 {[%emt 0:0:7]} Nf6 {[%emt 0:0:10]} 4. cxd5 {[%emt 0:0:8]} exd5 {[%emt 0:0:7]} 5. Nc3 {[%emt 0:0:5]} c6 {[%emt 0:0:27]} 6. Bf4 {[%emt 0:0:9]} Nh5 {[%emt 0:1:36] D35: Queen's Gambit Declined: Exchange Variation.} 7. Bg5 {[%emt 0:0:21]} Be7 {[%emt 0:2:11]} 8. Bxe7 {[%emt 0:0:7]} Qxe7 {[%emt 0:0:3]} 9. h3 {[%emt 0:0:27]} g6 {[%emt 0:2:57]} 10. e3 {[%emt 0:0:29]} Nd7 {[%emt 0:0:41]} 11. Be2 $146 {[%emt 0:0:33]} ({Predecessor:} 11. Bd3 Nf4 12. O-O Nxd3 13. Qxd3 O-O 14. Rfe1 Nf6 15. Ne5 Bf5 16. Qd2 Rad8 17. f3 {0-1 Rustemov,A (2525)-Artemiev,V (2641) Titled Tuesday intern op 24th Feb blitz 2026 (5)} )Ng7 {[%emt 0:0:30]} 12. Qb1 {[%emt 0:0:30]} a5 {[%emt 0:0:30]} 13. O-O {[%emt 0:0:30]} O-O {[%emt 0:13:54]} 14. a3 {[%emt 0:9:23]} Nb6 {[%emt 0:8:53]} 15. b4 {[%emt 0:1:49]} Bf5 {[%emt 0:0:30]} 16. Qb3 {[%emt 0:0:30]} axb4 {[%emt 0:0:30]} 17. axb4 {[%emt 0:0:30]} Rfc8 {[%emt 0:0:30]} 18. Ra5 {[%emt 0:0:30]} Ne8 {[%emt 0:0:30][%cal Bg7e8,Be8d6,Bd6e4,Be4c3][%mdl 32]} 19. Rfa1 {[%emt 0:0:30]} Rab8 {[%emt 0:0:30]} 20. Ra7 {[%emt 0:0:30]} Nd6 {[%emt 0:0:30]} 21. Ne5 {[%emt 0:0:30]} Nd7 {[%emt 0:0:30]} 22. Ng4 {[%emt 0:0:30]} Kg7 {[%emt 0:0:30]} 23. b5 {[%emt 0:0:30]} h5 {[%emt 0:0:30]} 24. Nh2 {[%emt 0:0:30][%cal Bg4h2,Bh2f3,Bf3e5][%mdl 32]} Ne4 {[%emt 0:47:59]} 25. Nf3 {[%emt 0:41:28]} Nxc3 {[%emt 0:4:4]} 26. Qxc3 {[%emt 0:1:24]} cxb5 {[%emt 0:0:6]} 27. Qb3 {[%emt 0:2:24]} Nf6 {[%emt 0:0:57][%cal Bd7f6,Bf6e8,Be8d6,Bd6e4][%mdl 32]} 28. Bxb5 {[%emt 0:1:22]} Rc7 {[%emt 0:1:33]} 29. Ne5 {[%emt 0:9:12]} Be6 {[%emt 0:0:29]} 30. Bd3 {[%emt 0:7:54]} Ne8 {[%emt 0:2:40]} 31. Be2 {[%emt 0:4:57]} Nd6 {[%emt 0:6:37]} 32. Nd3 {[%emt 0:0:6]} Ne4 {[%emt 0:0:47]} 33. Qb6 {[%emt 0:3:58]} Rbc8 {[%emt 0:1:42]} 34. Bf1 {[%emt 0:3:13]} g5 {[%emt 0:1:33]} (34... Bxh3 $5 35. gxh3 Qg5+ 36. Kh1 Rc2 37. Qxb7 Rxf2 38. Qxc8 (38. Nxf2 Nxf2+ 39. Kh2 Ng4+ 40. Kh1 Nf2+ 41. Kh2 Ng4+ 42. Kh1 Nf2+ $11 )Rxf1+ (38... Ng3+ 39. Kg1 $11 )39. Rxf1 Ng3+ 40. Kh2 Nxf1+ 41. Kh1 Ng3+ 42. Kh2 (42. Kg2 Ne4+ 43. Kf1 Qxe3 $11 )Nf1+ $11 (42... Qxe3 43. Rxf7+ Kxf7 44. Qc7+ Kf6 45. Qe5+ Kf7 46. Qxg3 $18 ))35. Ra8 {[%emt 0:2:17]} Rc6 {[%emt 0:0:18]} 36. Qb5 {[%emt 0:0:16]} g4 {[%emt 0:1:42] The position is equal.} 37. hxg4 {[%emt 0:6:4]} hxg4 {[%emt 0:0:1]} 38. Rxc8 {[%emt 0:0:28]} Rxc8 {[%emt 0:0:9]} 39. Nf4 {[%emt 0:0:23]} g3 {[%emt 0:0:52]} 40. Nh5+ {[%emt 0:1:3]} ({Inferior is} 40. Nxd5 gxf2+ 41. Kh2 Qh4# )Kh6 {[%emt 0:1:38]} 41. Nxg3 {[%emt 0:31:22]} Nxg3 {[%emt 0:2:26]} 42. fxg3 {[%emt 0:0:0]} Qg5 {[%emt 0:0:23]} 43. Qe2 {[%emt 0:0:0]} Qxg3 {[%emt 0:1:45]} 44. Qf3 {[%emt 0:0:0]} Qg5 {[%emt 0:1:42]} 45. Qf4 {[%emt 0:0:0]} Rc3 {[%emt 0:4:17] Weighted Error Value: White=0.09 (flawless) /Black=0.26 (precise)   Inaccurate:     	White=3     	Black=5      OK:         	White=6     	Black=2} 1/2-1/2

[Event "FIDE Women Candidates 2026"]
[White "Zhu,Jiner"]
[Black "Muzychuk,Anna"]
[Site "Agios Georgios Pegeia"]
[Round "6.1"]
[Annotator "TA"]
[Result "0-1"]
[Date "2026.04.04"]
[WhiteElo "2578"]
[BlackElo "2522"]
[PlyCount "74"]
[TimeControl "60"]

{[%evp 10,74,10,7,5,0,0,-8,-6,-12,0,0,0,0,0,-7,2,-12,-12,-28,4,0,3,-16,18,10,8,0,0,0,16,0,4,-43,0,-104,-93,-100,-100,-166,-166,-176,-168,-162,-165,-171,-176,-153,-152,-147,-155,-162,-147,-147,-97,-208,-50,-54,-59,-412,-453,-437,-435,-469,-443,-1705,-1665]} 1. e4 {[%emt 0:0:5]} e5 {[%emt 0:0:7]} 2. Nf3 {[%emt 0:0:9]} Nc6 {[%emt 0:0:8]} 3. Bc4 {[%emt 0:0:7]} Bc5 {[%emt 0:0:7]} 4. d3 {[%emt 0:0:11]} Nf6 {[%emt 0:0:24]} 5. Be3 {[%emt 0:0:10]} Bxe3 {[%emt 0:4:41]} 6. fxe3 {[%emt 0:0:8]} d6 {[%emt 0:0:17] C50: Hungarian Defence and Giuoco Pianissimo.} 7. Qd2 {[%emt 0:0:12]} a6 $146 {[%emt 0:4:16]} ({Predecessor:} 7... O-O 8. Bb3 a6 9. h3 Be6 10. Nc3 Na5 11. O-O c5 12. Bd5 Rc8 13. a4 h6 14. Qe1 {½-½ Sjugirov,S (2636)-Vitiugov,N (2676) FIDE Grand Swiss 2025 (11)} )8. Bb3 {[%emt 0:1:10]} Be6 {[%emt 0:8:5] The position is equal.} 9. Nc3 {[%emt 0:1:22][%cal Bb1c3,Bc3e4,Be4g3,Bg3e2][%mdl 32]} Bxb3 {[%emt 0:4:25]} 10. axb3 {[%emt 0:1:7]} d5 {[%emt 0:3:44]} 11. exd5 {[%emt 0:0:48]} Nxd5 {[%emt 0:0:7]} 12. O-O {[%emt 0:10:9]} O-O {[%emt 0:1:48]} 13. Ne4 {[%emt 0:2:37]} Qe7 {[%emt 0:6:8]} 14. Ng3 {[%emt 0:2:3]} g6 {[%emt 0:1:22]} 15. e4 {[%emt 0:16:56]} Nf6 {[%emt 0:6:57][%cal Bd5f6,Bf6d7,Bd7c5,Bc5e6,Be6d4][%mdl 32]} 16. Kh1 {[%emt 0:0:35]} Nd7 {[%emt 0:3:19]} 17. Ne2 {[%emt 0:4:33]} Rad8 {[%emt 0:2:50]} 18. Rf2 {[%emt 0:2:0]} Nc5 {[%emt 0:5:5]} 19. Nc3 {[%emt 0:6:50]} Nb4 {[%emt 0:9:21] Wards off Nd5} 20. Raf1 {[%emt 0:7:12]} f6 {[%emt 0:3:54][%cal Oc5b3]} 21. h4 {[%emt 0:0:55]} (21. Qh6 $11 )Ne6 {[%emt 0:1:59]} 22. Nh2 {[%emt 0:4:21]} (22. h5 $11 {keeps the balance.} )Nd4 $17 {[%emt 0:4:50]} 23. Qd1 {[%emt 0:9:42]} f5 {[%emt 0:6:15][%csl Od4] Strong Square Black (d4) Black is much more active.} 24. g3 {[%emt 0:5:34]} (24. h5 $17 )f4 $19 {[%emt 0:1:53]} 25. gxf4 {[%emt 0:0:24]} Rxf4 {[%emt 0:4:37]} 26. h5 {[%emt 0:9:32]} Ndxc2 {[%emt 0:1:44]} 27. Rxc2 {[%emt 0:1:32]} Rxf1+ {[%emt 0:2:5]} 28. Nxf1 {[%emt 0:0:6]} Nxc2 {[%emt 0:4:14]} 29. Qxc2 {[%emt 0:0:6]} Qh4+ {[%emt 0:0:22]} 30. Nh2 {[%emt 0:7:46]} Rf8 {[%emt 0:1:29][%mdl 1024] Black has strong compensation.} 31. Nd1 {[%emt 0:0:54] Dodges Rf2} Qxh5 {[%emt 0:1:29]} (31... gxh5 $142 32. Qg2+ Kh8 )32. Ne3 {[%emt 0:0:33]} (32. Nf2 $17 )c6 $2 $40 {[%emt 0:3:3][%mdl 128] [#] Black is up to no good.} ({Black should play} 32... Qh3 $19 33. Qe2 Qg3 )33. Qc4+ $15 {[%emt 0:0:47]} Kg7 {[%emt 0:0:59]} 34. Neg4 $2 {[%emt 0:2:26][%mdl 8192] Now White is beyond hope.} (34. Qe6 $15 )Qh3 $19 {[%emt 0:2:26]} 35. Qc1 {[%emt 0:4:19] Black is clearly winning. Dodges Rf1+} Qxd3 {[%emt 0:0:56]} 36. Qe1 {[%emt 0:0:16]} Rf4 {[%emt 0:1:39]} 37. Nf2 {[%emt 0:0:10]} (37. Nxe5 $142 Qxe4+ 38. Qxe4 Rxe4 39. Nc4 )Qg3 {[%emt 0:1:5] Weighted Error Value: White=0.59/Black=0.17 (very precise)   Loses game:     	White=1     	---        Mistake:       	White=5     	Black=2      Inaccurate:     	---       	Black=3      OK:         	White=3     	Black=3} 0-1

[Event "FIDE Women Candidates 2026"]
[White "Lagno,Kateryna"]
[Black "Vaishali,Rameshbabu"]
[Site "Agios Georgios Pegeia"]
[Round "6.2"]
[Annotator "TA"]
[Result "0-1"]
[Date "2026.04.04"]
[WhiteElo "2508"]
[BlackElo "2470"]
[PlyCount "94"]
[TimeControl "60"]

{[%evp 16,93,12,8,8,10,8,2,3,-8,0,0,0,0,0,0,0,-15,0,0,1,-7,23,-46,-34,-27,-37,-58,-21,-31,-13,-27,68,0,6,8,5,-104,0,0,8,0,0,-149,-168,-191,-183,-252,-271,-356,-340,-488,-481,-464,194,210,179,131,140,131,183,-742,-760,-740,-742,-740,-722,-822,-803,-947,-931,-921,-877,-1282,-1279,-1219,-1221,-1212,-1193,-1460]} 1. e4 {[%emt 0:0:5]} e5 {[%emt 0:0:23]} 2. Bc4 {[%emt 0:0:22]} Nf6 {[%emt 0:0:15]} 3. Nc3 {[%emt 0:0:6]} Nc6 {[%emt 0:0:23]} 4. d3 {[%emt 0:0:23]} Bb4 {[%emt 0:0:23]} 5. Nf3 {[%emt 0:0:20]} h6 {[%emt 0:1:5]} 6. O-O {[%emt 0:1:24]} Bxc3 {[%emt 0:0:49]} 7. bxc3 {[%emt 0:0:5]} O-O $1 {[%emt 0:0:13] 7...0-0 is better than 7...d6.} 8. Re1 {[%emt 0:3:19]} d6 {[%emt 0:0:24]} 9. h3 {[%emt 0:2:30]} Na5 {[%emt 0:0:36] C28: Vienna Game: 2...Nf6 3 Bc4 Nc6.} 10. Bb3 {[%emt 0:0:20]} c5 {[%emt 0:0:40]} 11. c4 $146 {[%emt 0:10:48]} ({Predecessor:} 11. Nd2 Be6 12. c4 Nc6 13. Nf1 Kh8 14. Ng3 Ng8 15. f4 f6 16. f5 Bc8 17. Nh5 {1-0 Ju,W (2559)-Muzychuk,A (2505) Norway Chess Armageddon (Women) 12th rapid 2024 (2)} )Nh7 {[%emt 0:3:57] The position is equal.} 12. c3 {[%emt 0:12:27]} f5 {[%emt 0:13:36]} 13. exf5 {[%emt 0:7:31]} Bxf5 {[%emt 0:0:6]} 14. d4 {[%emt 0:13:34]} e4 {[%emt 0:1:13]} 15. Nh2 {[%emt 0:0:5]} b6 {[%emt 0:11:47]} 16. Qh5 {[%emt 0:21:49]} Qf6 {[%emt 0:14:15][%cal Of5h3]} 17. Be3 {[%emt 0:0:15] A sharp opening} Rae8 {[%emt 0:0:38]} 18. Rad1 {[%emt 0:4:58]} Be6 {[%emt 0:1:37]} 19. Qe2 {[%emt 0:2:48]} (19. Ng4 $11 Qf5 20. Qxf5 Bxf5 21. Nh2 )Qf7 {[%emt 0:3:2]} 20. d5 {[%emt 0:0:9]} Bc8 {[%emt 0:7:30]} 21. Ba4 {[%emt 0:0:37]} Re7 {[%emt 0:1:57]} 22. Nf1 {[%emt 0:2:29]} h5 {[%emt 0:3:48]} 23. Nd2 {[%emt 0:3:0]} Qf6 {[%emt 0:12:16]} ({Black should play} 23... g5 $11 )24. Rc1 {[%emt 0:1:14]} (24. Qxh5 $14 Re5 25. Qe2 )Qh4 {[%emt 0:4:42]} 25. Bc2 {[%emt 0:2:47]} Bf5 {[%emt 0:4:5]} 26. Nb3 {[%emt 0:3:16]} (26. Bd1 $11 )Nb7 {[%emt 0:4:46] Black is more active.} (26... Nxb3 $17 27. axb3 Re5 (27... Bxh3 28. g3 $15 ))27. Bd1 {[%emt 0:1:4]} g6 {[%emt 0:2:5]} 28. a4 {[%emt 0:1:28]} Re5 {[%emt 0:1:59]} 29. Qd2 {[%emt 0:3:13]} (29. Qf1 $11 )Bxh3 $17 {[%emt 0:1:34]} 30. Bh6 {[%emt 0:0:23]} Rf7 $40 {[%emt 0:3:20][%mdl 128] aiming for ...Bg4. Black attacks with force.} 31. Re3 {[%emt 0:1:4]} (31. Qe3 $142 )Bg4 $19 {[%emt 0:1:12]} 32. Bc2 {[%emt 0:0:12] [#]} Bf3 {[%emt 0:0:49]} 33. gxf3 {[%emt 0:1:20]} (33. Bxe4 {was called for.} Bxe4 34. a5 )exf3 {[%emt 0:0:12] ( -> ...Qg4+)} 34. Qd3 {[%emt 0:0:27]} Rff5 $4 {[%emt 0:1:19][%mdl 8192]} (34... Rxe3 $19 {and all is fine.} 35. Bxe3 Rf5 )35. Rxf3 $18 {[%emt 0:0:25]} Ng5 {[%emt 0:0:31]} 36. Bxg5 {[%emt 0:0:22]} (36. Rxf5 $18 Nh3+ (36... Rxf5 $2 {loses.} 37. Qg3 $18 )37. Kg2 Rxf5 38. Rf1 Nf4+ 39. Bxf4 Qxf4 40. Qe4 Rg5+ 41. Kh1 Qxe4+ 42. Bxe4 )Rxg5+ $16 {[%emt 0:0:25]} 37. Rg3 {[%emt 0:0:4]} Qh3 {[%emt 0:0:32]} (37... Qf4 $16 )38. Qf1 $4 {[%emt 0:1:2][%mdl 8192]} (38. Qf3 $18 )Rxg3+ $19 {[%emt 0:0:21] Black is clearly winning.} 39. fxg3 {[%emt 0:0:3]} Qxg3+ {[%emt 0:0:4]} 40. Qg2 {[%emt 0:0:22]} Qe3+ {[%emt 0:0:9]} 41. Kh2 {[%emt 0:10:54]} Rg5 {[%emt 0:3:58]} 42. Qh3 {[%emt 0:3:52]} Qf4+ {[%emt 0:7:22]} 43. Kh1 {[%emt 0:0:5]} Rg3 {[%emt 0:0:28]} 44. Qe6+ {[%emt 0:2:10]} Kg7 {[%emt 0:0:14] [#] ( -> ...Qh4+)} 45. Qe7+ {[%emt 0:1:15]} Kh6 {[%emt 0:0:4]} 46. Be4 {[%emt 0:2:55] Inhibits Qf3+.} Rg5 {[%emt 0:2:46][%cal Rf4h4]} 47. Bg2 {[%emt 0:1:24]} Qh4+ {[%emt 0:0:6] Weighted Error Value: White=0.67/Black=0.26 (precise)   Missed win:     	White=1     	Black=1      Mistake:       	White=7     	Black=3      Inaccurate:     	White=1     	Black=2      OK:         	White=3     	Black=6      Best:        	White=1     	---} 0-1

[Event "FIDE Women Candidates 2026"]
[White "Assaubayeva,Bibisara"]
[Black "Divya Deshmukh"]
[Site "Agios Georgios Pegeia"]
[Round "6.3"]
[Annotator "TA"]
[Result "0-1"]
[Date "2026.04.04"]
[WhiteElo "2516"]
[BlackElo "2497"]
[PlyCount "92"]
[TimeControl "60"]

{[%evp 13,92,7,29,32,27,27,23,18,26,26,29,17,41,20,16,10,18,0,0,0,0,0,0,0,8,-10,-20,-18,0,-10,29,5,24,34,35,33,32,0,11,-5,-10,-14,-23,-55,-49,-67,-16,-113,-78,-138,0,-92,0,-118,0,-85,-18,-14,-33,-19,-41,-85,-71,-66,0,-129,-129,-220,-214,-192,-180,-340,-321,-403,-397,-504,-504,-591,-591,-2146,-2145]} 1. d4 {[%emt 0:0:10]} d5 {[%emt 0:0:7]} 2. c4 {[%emt 0:0:18]} e6 {[%emt 0:0:11]} 3. Nf3 {[%emt 0:0:6]} Nf6 {[%emt 0:0:5]} 4. Nc3 {[%emt 0:0:5]} c6 {[%emt 0:0:3]} 5. Bg5 {[%emt 0:0:13]} Nbd7 {[%emt 0:0:23]} 6. e3 {[%emt 0:0:42]} Qa5 {[%emt 0:0:14]} 7. cxd5 {[%emt 0:0:17]} Nxd5 {[%emt 0:0:5]} 8. Rc1 {[%emt 0:0:34] D52: Queen's Gambit Declined: Cambridge Springs Variation.} Nxc3 {[%emt 0:0:58]} 9. bxc3 {[%emt 0:0:7]} Ba3 {[%emt 0:0:14]} 10. Rc2 {[%emt 0:0:6] White has an edge.} c5 {[%emt 0:0:14]} 11. Bd3 {[%emt 0:5:30]} cxd4 {[%emt 0:0:55]} 12. exd4 {[%emt 0:0:37]} b6 $1 {[%emt 0:0:18]} 13. Be4 {[%emt 0:12:36]} Rb8 {[%emt 0:0:6]} 14. Bf4 {[%emt 0:1:35]} Bb7 {[%emt 0:1:6]} 15. Bxb7 {[%emt 0:1:10]} (15. Bxb8 $6 Bxe4 16. Bg3 Bxc2 17. Qxc2 O-O $15 )Rxb7 {[%emt 0:0:5]} 16. Qd3 {[%emt 0:0:32]} O-O {[%emt 0:5:51]} 17. O-O {[%emt 0:5:56]} Rc8 {[%emt 0:7:0]} 18. c4 {[%emt 0:4:0]} Nf8 $146 {[%emt 0:9:5]} ({Predecessor:} 18... Nf6 19. Bg3 Qa4 20. h3 Rd7 21. Ra1 Bf8 22. Rac1 h6 23. Qe2 Ne8 24. Kh2 Nd6 {½-½ Tauscher,K (2301)-Shaw,S (2322) WS MN/162 email 2017} )19. Qe4 {[%emt 0:6:38]} Qa6 {[%emt 0:5:26]} 20. h4 {[%emt 0:10:38]} Re7 {[%emt 0:12:23]} 21. Qd3 {[%emt 0:6:6]} Rd7 {[%emt 0:3:11]} 22. h5 {[%emt 0:1:47]} Bd6 {[%emt 0:5:15]} 23. Bxd6 {[%emt 0:3:30]} Rxd6 {[%emt 0:0:2] [#]} 24. h6 $1 {[%emt 0:0:48]} gxh6 {[%emt 0:11:36]} 25. Ne5 {[%emt 0:7:21]} Ng6 {[%emt 0:9:43]} 26. Qe3 {[%emt 0:6:18][%mdl 1024] White has compensation.} Qb7 $1 {[%emt 0:13:46]} 27. c5 {[%emt 0:9:34]} (27. Qxh6 $2 Rxd4 28. Qh5 Qxg2+ 29. Kxg2 Nf4+ 30. Kf3 Nxh5 31. Rg1+ Kf8 $19 )Rd5 {[%emt 0:2:15]} 28. c6 {[%emt 0:5:5]} Qe7 {[%emt 0:0:48]} 29. f4 {[%emt 0:2:6]} Rc7 {[%emt 0:7:48]} (29... Kg7 $1 $15 )30. g3 {[%emt 0:3:12]} (30. f5 $11 exf5 31. Rxf5 (31. Qxh6 $2 Rxd4 32. Nf3 Rd6 $19 )Nxe5 32. Rxe5 (32. dxe5 Rd1+ 33. Kf2 Qh4+ 34. Qg3+ Qxg3+ 35. Kxg3 Kg7 $11 )Rxe5 33. dxe5 )Qb4 $17 {[%emt 0:2:21]} 31. Rc4 {[%emt 0:1:28]} (31. Rd1 $142 )Qe7 {[%emt 0:1:35]} ({Better is} 31... Qd6 32. a4 Ne7 )32. Rc2 $1 {[%emt 0:1:19]} Qb4 {[%emt 0:0:31]} 33. Rc4 {[%emt 0:0:2]} Qe7 {[%emt 0:0:1]} 34. Rc2 $1 {[%emt 0:0:18]} Qd8 {[%emt 0:1:46]} (34... Qf6 $17 )35. f5 $11 {[%emt 0:3:52]} Nxe5 {[%emt 0:0:55]} 36. dxe5 {[%emt 0:0:2]} Rd1 $36 {[%emt 0:1:31][%mdl 2048] Black fights for an advantage.} 37. Rcf2 {[%emt 0:2:50]} Rxf1+ {[%emt 0:0:22]} 38. Rxf1 $17 {[%emt 0:0:0][%mdl 4096] [#] Endgame Strongly threatening f6. KQR-KQR. Black is a pawn up.} Qg5 {[%emt 0:0:37]} (38... Rxc6 $15 39. f6 Rc5 )39. Qd3 {[%emt 0:2:1]} (39. Qc3 $11 {remains equal.} exf5 40. Rd1 )Rxc6 {[%emt 0:0:22]} 40. f6 {[%emt 0:0:27]} (40. Qf3 $17 {keeps fighting.} Rc8 (40... Rc1 $2 41. Qa8+ Kg7 42. f6+ Kg6 43. Qg8+ Kh5 44. Qxg5+ Kxg5 45. Rxc1 $18 )41. fxe6 fxe6 42. Qf7+ Kh8 43. Qf6+ Qxf6 44. Rxf6 )Rc8 $1 $19 {[%emt 0:0:15]} 41. Rd1 {[%emt 0:3:14][%cal Od3d8] Threatening mate with Qd8+!.} Kh8 {[%emt 0:4:7]} 42. Kg2 $2 {[%emt 0:5:47]} (42. Kf2 )h5 {[%emt 0:6:42]} 43. Qd2 {[%emt 0:5:21]} Qg4 {[%emt 0:2:44]} 44. Re1 {[%emt 0:4:15]} h4 {[%emt 0:3:56] Black is clearly winning.} 45. Re3 {[%emt 0:0:6]} Rg8 {[%emt 0:1:39]} 46. Qd7 {[%emt 0:3:31]} Qf4 {[%emt 0:2:17] Weighted Error Value: White=0.43/Black=0.22 (precise)   Mistake:       	White=5     	Black=4      Inaccurate:     	White=3     	Black=1      OK:         	White=6     	Black=8      Best:        	---       	Black=1      Strong:       	White=2     	Black=3} 0-1

[Event "FIDE Women Candidates 2026"]
[White "Tan,Zhongyi"]
[Black "Goryachkina,Aleksandra"]
[Site "Agios Georgios Pegeia"]
[Round "6.4"]
[Annotator "TA"]
[Result "1/2-1/2"]
[Date "2026.04.04"]
[WhiteElo "2535"]
[BlackElo "2534"]
[PlyCount "106"]
[TimeControl "60"]

{[%evp 14,105,27,21,33,33,28,8,21,21,22,22,20,9,0,0,0,0,0,0,0,0,0,4,7,0,0,0,3,0,0,0,0,6,8,6,41,-147,-147,-141,-139,-141,-141,-142,-139,-144,-147,-145,-84,-102,-97,-91,-100,-95,-95,-99,-98,-98,-81,-81,-91,-90,-90,-104,-61,-61,-54,-54,-54,-54,-54,-61,-49,-129,-124,-110,-112,-112,-112,-114,-32,-32,-32,-32,-32,-32,-32,-32,-32,-32,-32,-32,-29,-27]} 1. e4 {[%emt 0:0:4]} e5 {[%emt 0:0:10]} 2. Nf3 {[%emt 0:0:7]} Nc6 {[%emt 0:0:5]} 3. Bc4 {[%emt 0:0:5]} Nf6 {[%emt 0:0:21][%cal Bg8f6,Bf6d5,Bd5f4,Bf4d3][%mdl 32]} 4. Ng5 {[%emt 0:0:8]} d5 {[%emt 0:0:11]} 5. exd5 {[%emt 0:0:7]} Na5 {[%emt 0:0:4]} 6. Bb5+ {[%emt 0:0:6]} c6 {[%emt 0:0:5]} 7. dxc6 {[%emt 0:0:6]} bxc6 {[%emt 0:0:5]} 8. Bd3 $1 {[%emt 0:0:5][%mdl 4] now scores much better than the old 8.Be2.} Nd5 {[%emt 0:0:50] C58: Two Knights: 4 Ng5 d5 5 exd5 Na5 sidelines.} 9. Nf3 {[%emt 0:0:11]} (9. Nxh7 $2 Nf4 10. Bf1 (10. Be4 $2 f5 $19 )Rxh7 $19 )Bd6 {[%emt 0:0:22]} 10. Nc3 {[%emt 0:0:16]} Nf4 {[%emt 0:0:27] The position is equal.} 11. O-O {[%emt 0:0:11]} Nxd3 {[%emt 0:0:35] Black sacrificed a pawn} 12. cxd3 {[%emt 0:0:6]} O-O {[%emt 0:0:34]} 13. Ne4 {[%emt 0:0:6]} Bc7 {[%emt 0:0:20]} 14. Qc2 {[%emt 0:0:18]} c5 {[%emt 0:0:57]} 15. Qxc5 {[%emt 0:0:57]} Ba6 {[%emt 0:2:43]} 16. Re1 {[%emt 0:0:15] and b4 would now be decisive} Bxd3 {[%emt 0:10:49]} 17. b3 {[%emt 0:14:6]} (17. Nxe5 Bxe5 18. Qxe5 Re8 $19 )Re8 {[%emt 0:8:53]} 18. Qc3 {[%emt 0:2:50]} Bb6 {[%emt 0:10:6] This pair of bishops is nice.} 19. Nc5 {[%emt 0:7:47]} Bxc5 {[%emt 0:5:7]} 20. Qxc5 {[%emt 0:0:7]} Rc8 {[%emt 0:7:20]} 21. Qe3 {[%emt 0:0:12]} Nc6 {[%emt 0:2:4]} 22. Bb2 $1 {[%emt 0:0:40]} f6 $146 {[%emt 0:13:53]} ({Predecessor:} 22... Nb4 23. Nxe5 f6 24. Qxa7 Rxe5 25. Bxe5 fxe5 26. Rac1 Bc2 27. Re3 Qxd2 28. Rce1 Qd8 {½-½ Gray,G (2201)-Lowrance,W (2266) FICGS W-ch st1 gN 04 email 2012 (1)} )23. Rac1 {[%emt 0:5:12]} Qd7 {[%emt 0:0:28]} 24. Rc3 {[%emt 0:11:40]} e4 {[%emt 0:8:19]} 25. Rec1 $2 {[%emt 0:3:4] [#]} (25. Ra1 $14 {stays ahead.} )exf3 $17 {[%emt 0:6:4]} 26. Qxd3 {[%emt 0:23:16]} (26. Rxd3 $2 {is the wrong capture.} Qf5 $19 )Nd4 {[%emt 0:0:34]} 27. Rxc8 {[%emt 0:1:50]} Ne2+ {[%emt 0:1:1]} 28. Qxe2 {[%emt 0:0:16]} fxe2 {[%emt 0:0:10]} 29. Rxe8+ {[%emt 0:0:4]} Qxe8 {[%emt 0:0:3][%mdl 4096] Endgame KQ-KRB} 30. Re1 {[%emt 0:0:6]} Qe4 {[%emt 0:6:27]} (30... Qe6 $142 31. Bd4 Qa6 )31. Bc3 {[%emt 0:0:46]} Qc2 {[%emt 0:3:18]} 32. f3 {[%emt 0:0:37]} Qxa2 {[%emt 0:1:50]} 33. b4 {[%emt 0:0:6]} Qc4 {[%emt 0:1:11]} 34. g3 {[%emt 0:0:47]} Qe6 {[%emt 0:3:28]} 35. Kf2 {[%emt 0:0:6]} Qh3 {[%emt 0:0:58]} 36. Kg1 {[%emt 0:0:6]} h5 {[%emt 0:3:28]} 37. Rxe2 {[%emt 0:0:6]} h4 {[%emt 0:0:34]} 38. Rg2 {[%emt 0:0:24]} Qf5 {[%emt 0:1:35]} 39. Kf2 {[%emt 0:1:2]} Kf7 {[%emt 0:0:50]} 40. gxh4 {[%emt 0:1:2]} Qh3 {[%emt 0:0:52]} 41. Rg4 {[%emt 0:30:26]} Qxh2+ {[%emt 0:30:17]} 42. Ke3 {[%emt 0:0:13]} a6 {[%emt 0:0:56][%mdl 1024] Black has compensation.} 43. Rd4 {[%emt 0:0:51]} (43. d3 $15 )Qg1+ {[%emt 0:2:7]} 44. Ke2 {[%emt 0:0:18]} Qg2+ {[%emt 0:0:29]} 45. Ke3 {[%emt 0:0:6]} Qf1 {[%emt 0:0:30] Repels Rc4} 46. Rd7+ {[%emt 0:2:30]} Kg6 {[%emt 0:0:0]} ({Better is} 46... Kf8 $17 47. Rd8+ Kf7 )47. h5+ $15 {[%emt 0:0:0]} Kh6 {[%emt 0:0:0]} 48. Rd5 {[%emt 0:0:0]} Qe1+ {[%emt 0:0:0]} 49. Kf4 $1 {[%emt 0:0:0]} Kh7 {[%emt 0:0:0]} 50. Ra5 {[%emt 0:0:0]} Qe2 {[%emt 0:0:0]} 51. Rc5 {[%emt 0:0:0]} Qh2+ {[%emt 0:0:0]} 52. Ke3 {[%emt 0:0:0]} Qg1+ {[%emt 0:0:0]} 53. Ke2 {[%emt 0:0:0]} Qg2+ {[%emt 0:0:0] And White is the lucky defender.   Weighted Error Value: White=0.10 (very precise) /Black=0.20 (precise)   Mistake:       	White=2     	Black=2      Inaccurate:     	---       	Black=3      OK:         	White=1     	Black=4      Strong:       	White=2     	---} 1/2-1/2

[Event "FIDE Women Candidates 2026"]
[White "Muzychuk,Anna"]
[Black "Assaubayeva,Bibisara"]
[Site "Agios Georgios Pegeia"]
[Round "7.1"]
[Annotator "ChessBase"]
[Result "1/2-1/2"]
[Date "2026.04.05"]
[WhiteElo "2522"]
[BlackElo "2516"]
[PlyCount "52"]
[TimeControl "60"]

1. e4 {[%emt 0:0:3]} c5 {[%emt 0:0:4]} 2. Nf3 {[%emt 0:0:6]} Nc6 {[%emt 0:0:4]} 3. Bb5 {[%emt 0:0:10]} Nf6 {[%emt 0:0:7]} 4. Bxc6 {[%emt 0:6:35]} dxc6 {[%emt 0:0:20]} 5. d3 {[%emt 0:0:5]} Bg4 {[%emt 0:0:5]} 6. h3 {[%emt 0:9:58]} Bh5 {[%emt 0:1:1]} 7. g4 {[%emt 0:6:22]} Bg6 {[%emt 0:0:5]} 8. Bf4 {[%emt 0:0:5]} c4 {[%emt 0:2:49]} 9. Nc3 {[%emt 0:2:1]} cxd3 {[%emt 0:3:30]} 10. Qxd3 {[%emt 0:3:16]} Qxd3 {[%emt 0:3:34]} 11. cxd3 {[%emt 0:3:20]} Nd7 {[%emt 0:1:28]} 12. Nh4 {[%emt 0:13:18]} e5 {[%emt 0:2:39]} 13. Be3 {[%emt 0:0:4]} Be7 {[%emt 0:11:51]} 14. Nf5 {[%emt 0:3:33]} Bxf5 {[%emt 0:3:3]} 15. exf5 {[%emt 0:0:6]} O-O-O {[%emt 0:6:59]} 16. Ne4 {[%emt 0:8:6]} Kb8 {[%emt 0:3:8]} 17. Ke2 {[%emt 0:2:54]} Nf6 {[%emt 0:3:45]} 18. Nxf6 {[%emt 0:9:17]} Bxf6 {[%emt 0:1:11]} 19. Rac1 {[%emt 0:2:20]} Rd5 {[%emt 0:1:20]} 20. b3 {[%emt 0:1:36]} Rhd8 {[%emt 0:1:13]} 21. Rhd1 {[%emt 0:0:5]} h6 {[%emt 0:1:8]} 22. Rc4 {[%emt 0:0:47]} R8d7 {[%emt 0:2:2]} 23. Rd2 {[%emt 0:0:27]} Rd8 {[%emt 0:2:1]} 24. Rd1 {[%emt 0:0:6]} R8d7 {[%emt 0:0:4]} 25. Rd2 {[%emt 0:0:6]} Rd8 {[%emt 0:0:4]} 26. Rd1 {[%emt 0:0:4]} R8d7 {[%emt 0:0:18]} 1/2-1/2